bitfinex/quotes_SOLUSD_20240818
["timestamp","ask_amount","ask_price","bid_price","bid_amount"]
[1723958763476,0.37647,141.74,141.66,2.12051029]
[1723958763650,0.37647,141.74,141.64,23.44]
[1723958763651,0.37647,141.74,141.65,2.12051029]
[1723958763859,0.37647,141.74,141.66,11.51051029]
[1723958764062,0.37647,141.74,141.66,9.39]
[1723958764571,0.37647,141.74,141.66,11.51098583]
[1723958764770,0.37647,141.74,141.66,9.39]
[1723958764958,0.37647,141.74,141.66,11.51098583]
[1723958765162,0.37647,141.74,141.67,2.12098583]
[1723958766069,45.37647,141.74,141.65,23.47]
[1723958766265,45.37647,141.74,141.66,22.12098583]
[1723958767461,50.31507,141.74,141.66,22.12098583]
[1723958767870,50.31507,141.74,141.66,20.0]
[1723958768185,50.31507,141.74,141.66,22.12098583]
[1723958768386,50.31507,141.74,141.66,20.0]
[1723958770176,45.37647,141.74,141.66,22.12110416]
[1723958770356,0.37647,141.74,141.66,22.12110416]
[1723958772772,0.12549,141.74,141.66,22.12110416]
[1723958773881,0.12549,141.74,141.66,20.0]
[1723958774380,0.37647,141.74,141.66,20.0]
[1723958775072,0.25098,141.74,141.66,20.0]
[1723958775866,0.25098,141.74,141.66,22.12093095]
[1723958776265,0.25098,141.74,141.66,20.0]
[1723958776471,0.25098,141.74,141.66,22.12093095]
[1723958777379,0.12549,141.74,141.67,23.47]
[1723958777688,0.12549,141.74,141.67,25.59093095]
[1723958778281,0.12549,141.74,141.68,2.12093095]
[1723958779799,0.12549,141.74,141.67,23.47]
[1723958779999,0.12549,141.74,141.68,2.12065124]
[1723958780297,0.12549,141.74,141.69,2.12065124]
[1723958780504,21.5938,141.75,141.7,2.1205485]
[1723958781212,21.5938,141.75,141.69,23.47]
[1723958781375,21.5938,141.75,141.7,2.12044292]
[1723958781577,21.5938,141.75,141.69,23.47]
[1723958781775,21.5938,141.75,141.7,2.12044212]
[1723958781990,21.5938,141.75,141.69,23.47]
[1723958782195,21.5938,141.75,141.7,2.12044069]
[1723958782393,21.5938,141.75,141.69,23.47]
[1723958782703,21.5938,141.75,141.7,2.12045546]
[1723958782904,21.5938,141.75,141.69,23.47]
[1723958783114,21.5938,141.75,141.7,2.12044292]
[1723958783310,21.5938,141.75,141.69,6.2046149]
[1723958783602,21.5938,141.75,141.7,2.1204399]
[1723958783804,21.5938,141.75,141.69,6.2046149]
[1723958783972,21.5938,141.75,141.7,2.12046011]
[1723958784177,21.5938,141.75,141.69,6.20417762]
[1723958784376,21.5938,141.75,141.7,2.12046011]
[1723958784592,21.5938,141.75,141.69,6.20417762]
[1723958784806,21.5938,141.75,141.7,2.12045932]
[1723958784992,21.5938,141.75,141.69,6.20417762]
[1723958785303,21.5938,141.75,141.7,2.12045847]
[1723958785505,21.5938,141.75,141.69,6.20417762]
[1723958785690,21.5938,141.75,141.7,2.12045768]
[1723958785888,21.5938,141.75,141.71,2.12044684]
[1723958786093,21.5938,141.75,141.7,9.38]
[1723958786296,21.5938,141.75,141.71,2.12043129]
[1723958786603,21.5938,141.75,141.7,9.38]
[1723958786895,21.5938,141.75,141.71,2.12044133]
[1723958787103,21.5938,141.75,141.7,9.38]
[1723958787295,21.5938,141.75,141.71,2.12043912]
[1723958787607,21.5938,141.75,141.7,9.38]
[1723958787777,21.5938,141.75,141.71,2.12043912]
[1723958787978,21.5938,141.75,141.7,9.38]
[1723958788197,21.5938,141.75,141.71,2.12043912]
[1723958788402,21.5938,141.75,141.7,9.38]
[1723958788684,21.5938,141.75,141.71,2.12043991]
[1723958788991,21.5938,141.75,141.7,9.38]
[1723958789195,21.5938,141.75,141.71,2.12043912]
[1723958789394,21.5938,141.75,141.7,9.38]
[1723958789592,21.5938,141.75,141.71,2.12043991]
[1723958789793,21.5938,141.75,141.7,9.38]
[1723958790102,21.5938,141.75,141.71,2.12043912]
[1723958790294,15.5782,141.75,141.74,9.38]
[1723958790882,6.4343,141.78,141.74,11.50006593]
[1723958791084,6.4343,141.78,141.72,6.19614031]
[1723958791085,6.4343,141.78,141.76,9.38]
[1723958792205,6.4343,141.78,141.75,9.38]
[1723958795115,6.4343,141.78,141.74,2.11988577]
[1723958795291,6.4343,141.78,141.73,9.38]
[1723958795492,6.4343,141.78,141.74,2.11988767]
[1723958795688,6.4343,141.78,141.73,9.38]
[1723958795994,6.4343,141.78,141.74,2.11993099]
[1723958796221,6.4343,141.78,141.73,9.38]
[1723958796394,6.4343,141.78,141.74,2.11988656]
[1723958796595,0.12549,141.77,141.72,6.19407327]
[1723958796893,0.12549,141.77,141.68,16.716064]
[1723958797096,0.12549,141.77,141.7,9.38]
[1723958797326,0.12549,141.77,141.71,2.12031795]
[1723958797513,0.12549,141.77,141.7,9.38]
[1723958797713,0.12549,141.77,141.71,2.12036644]
[1723958797902,0.25098,141.77,141.71,2.12036644]
[1723958798225,45.37647,141.77,141.7,2.12036644]
[1723958798429,45.37647,141.77,141.69,9.38]
[1723958798598,45.37647,141.77,141.7,22.1204153]
[1723958798905,45.37647,141.77,141.7,20.0]
[1723958802803,45.37647,141.77,141.7,9.38]
[1723958804114,0.12549,141.77,141.71,2.12039514]
[1723958804321,0.12549,141.77,141.7,9.38]
[1723958804525,0.12549,141.77,141.71,2.12033544]
[1723958804701,0.12549,141.77,141.7,9.38]
[1723958804906,0.12549,141.77,141.71,2.1202921]
[1723958805100,0.12549,141.77,141.7,9.38]
[1723958805401,0.12549,141.77,141.71,2.12027983]
[1723958805602,0.12549,141.77,141.7,9.38]
[1723958805803,0.12549,141.77,141.71,2.12031164]
[1723958806023,0.12549,141.77,141.7,9.38]
[1723958806226,0.12549,141.77,141.72,9.38]
[1723958806424,0.12549,141.77,141.72,11.50033331]
[1723958806595,0.12549,141.77,141.72,9.38]
[1723958806917,0.12549,141.77,141.72,11.50033331]
[1723958807122,0.12549,141.77,141.72,9.38]
[1723958808103,0.12549,141.77,141.71,9.38]
[1723958808306,45.50196,141.77,141.7,2.12038741]
[1723958808830,15.0661,141.76,141.7,2.12038741]
[1723958809034,0.12549,141.75,141.7,2.12038741]
[1723958809241,0.12549,141.75,141.69,29.38]
[1723958809607,0.12549,141.75,141.7,2.12054526]
[1723958809834,0.12549,141.75,141.69,29.38]
[1723958810029,0.12549,141.75,141.7,2.12050222]
[1723958810340,0.12549,141.75,141.69,29.38]
[1723958810541,0.12549,141.75,141.7,2.12047975]
[1723958810831,0.12549,141.75,141.69,29.38]
[1723958811040,0.12549,141.75,141.7,2.12050222]
[1723958811343,0.12549,141.75,141.69,29.38]
[1723958811509,0.12549,141.75,141.7,2.12050142]
[1723958811711,0.12549,141.75,141.69,29.38]
[1723958811911,0.12549,141.75,141.7,2.12050222]
[1723958812125,0.12549,141.75,141.69,29.38]
[1723958812329,0.12549,141.75,141.7,2.12048054]
[1723958812537,0.12549,141.75,141.69,29.38]
[1723958812724,0.12549,141.75,141.7,2.12047975]
[1723958812927,0.12549,141.75,141.69,29.38]
[1723958813128,0.12549,141.75,141.7,2.12050142]
[1723958813440,0.12549,141.75,141.69,29.38]
[1723958813644,0.12549,141.75,141.7,2.12050444]
[1723958813943,0.12549,141.75,141.69,29.38]
[1723958814311,0.12549,141.75,141.7,2.12050444]
[1723958814521,0.12549,141.75,141.71,2.12045808]
[1723958814813,0.12549,141.75,141.69,35.57386431]
[1723958815028,0.12549,141.75,141.7,2.12045887]
[1723958815223,0.12549,141.75,141.69,29.38]
[1723958815430,0.12549,141.75,141.7,2.12054557]
[1723958815634,0.12549,141.75,141.71,2.12047983]
[1723958815814,0.12549,141.75,141.69,35.57430775]
[1723958816131,0.12549,141.75,141.71,9.38]
[1723958819113,0.12549,141.75,141.72,2.12035023]
[1723958819339,0.12549,141.75,141.71,9.38]
[1723958819535,0.12549,141.75,141.72,2.12035023]
[1723958819726,0.12549,141.75,141.71,9.38]
[1723958820631,0.12549,141.75,141.7,6.19509142]
[1723958820827,0.12549,141.73,141.66,16.72659469]
[1723958821137,0.25098,141.73,141.67,8.31945752]
[1723958821333,0.25098,141.73,141.68,2.1209336]
[1723958821526,0.25098,141.73,141.67,6.19852392]
[1723958821718,0.25098,141.73,141.68,2.1209601]
[1723958821911,0.25098,141.73,141.67,6.19852392]
[1723958822116,0.12549,141.73,141.68,2.1209621]
[1723958822440,0.12549,141.73,141.67,6.19852392]
[1723958822735,0.12549,141.73,141.68,2.1209599]
[1723958822943,0.12549,141.73,141.67,6.19852392]
[1723958823130,0.12549,141.73,141.66,9.38]
[1723958823131,0.12549,141.73,141.68,2.12087174]
[1723958823320,0.12549,141.73,141.67,6.19740772]
[1723958823516,0.12549,141.73,141.68,2.12089611]
[1723958823842,0.12549,141.73,141.69,2.12089611]
[1723958824044,0.12549,141.73,141.68,9.38]
[1723958824351,0.12549,141.73,141.69,2.12074071]
[1723958824526,0.12549,141.73,141.68,9.38]
[1723958824728,0.12549,141.73,141.69,2.12078567]
[1723958825030,0.12549,141.73,141.68,9.38]
[1723958825215,0.12549,141.73,141.69,2.12078376]
[1723958825411,0.12549,141.73,141.68,9.38]
[1723958825615,0.12549,141.73,141.69,2.12072893]
[1723958825837,0.12549,141.73,141.7,2.12072893]
[1723958826041,0.12549,141.73,141.68,9.38]
[1723958826213,0.12549,141.73,141.69,2.12072893]
[1723958826421,0.12549,141.73,141.68,9.38]
[1723958826743,0.12549,141.73,141.69,2.12072893]
[1723958826927,0.12549,141.73,141.68,9.38]
[1723958827134,0.12549,141.73,141.69,2.12072814]
[1723958827323,0.12549,141.73,141.68,15.57630963]
[1723958827324,0.12549,141.73,141.68,9.38]
[1723958827528,0.12549,141.73,141.69,2.12072893]
[1723958827835,0.12549,141.73,141.68,9.38]
[1723958828017,0.12549,141.73,141.69,3.53206089]
[1723958828230,0.12549,141.73,141.7,2.12072814]
[1723958828535,0.12549,141.73,141.69,1.41133275]
[1723958828723,0.12549,141.73,141.7,2.12064111]
[1723958828926,0.12549,141.73,141.68,9.38]
[1723958828927,0.12549,141.73,141.68,15.5758604]
[1723958829141,0.12549,141.73,141.69,2.12067442]
[1723958829343,0.12549,141.73,141.68,15.5758604]
[1723958829545,0.12549,141.73,141.69,2.12072862]
[1723958829846,0.12549,141.73,141.68,15.5758604]
[1723958830021,0.12549,141.73,141.69,2.12072862]
[1723958830224,0.12549,141.73,141.68,6.1958604]
[1723958830541,0.12549,141.73,141.67,6.1958604]
[1723958830748,0.12549,141.73,141.68,2.12087081]
[1723958830919,0.12549,141.73,141.67,6.1958604]
[1723958831239,0.12549,141.73,141.68,2.1208917]
[1723958831451,0.12549,141.73,141.67,6.1958604]
[1723958831647,0.12549,141.73,141.68,2.12089249]
[1723958831838,0.12549,141.73,141.67,6.1958604]
[1723958832042,0.12549,141.73,141.68,2.12091338]
[1723958832224,0.12549,141.73,141.67,6.1958604]
[1723958832424,0.12549,141.73,141.68,2.12091338]
[1723958832624,0.12549,141.73,141.67,6.1958604]
[1723958832943,0.12549,141.73,141.66,9.38]
[1723958833140,0.12549,141.73,141.67,8.31685013]
[1723958833355,15.0926,141.72,141.66,15.57593596]
[1723958833642,0.12549,141.71,141.67,2.12098073]
[1723958833843,0.12549,141.71,141.66,15.57593596]
[1723958834141,0.12549,141.71,141.67,2.12099852]
[1723958834360,0.12549,141.71,141.66,15.57593596]
[1723958834534,0.12549,141.71,141.67,2.12099932]
[1723958834846,0.12549,141.71,141.66,15.57593596]
[1723958835053,0.12549,141.71,141.67,2.12099932]
[1723958835253,0.12549,141.71,141.66,9.38]
[1723958835421,0.12549,141.71,141.67,2.12099852]
[1723958835623,0.12549,141.71,141.66,9.38]
[1723958835824,0.12549,141.71,141.67,2.12099932]
[1723958836024,0.12549,141.71,141.66,9.38]
[1723958836232,0.12549,141.71,141.67,2.12102131]
[1723958836546,0.12549,141.69,141.63,17.86930432]
[1723958836751,0.12549,141.69,141.64,2.12125531]
[1723958837049,0.12549,141.69,141.65,2.12125531]
[1723958837248,0.12549,141.69,141.64,2.12134559]
[1723958837429,0.12549,141.69,141.63,9.38]
[1723958837628,15.0926,141.68,141.64,2.12135854]
[1723958837830,15.0926,141.68,141.63,9.38]
[1723958838026,15.0926,141.68,141.64,2.12147277]
[1723958838226,15.0926,141.68,141.63,9.38]
[1723958838429,15.0926,141.68,141.64,2.12145519]
[1723958838642,15.0926,141.68,141.63,2.12150034]
[1723958838850,0.12549,141.67,141.61,6.20033098]
[1723958839149,0.12549,141.67,141.62,2.12160344]
[1723958839346,0.12549,141.67,141.61,9.38]
[1723958839652,0.12549,141.67,141.62,2.12161312]
[1723958839967,0.12549,141.65,141.62,2.12172004]
[1723958840125,0.12549,141.65,141.6,6.20033098]
[1723958840126,0.12549,141.63,141.58,0.8437933]
[1723958840328,0.12549,141.63,141.58,2.96557613]
[1723958840648,6.2959,141.62,141.58,2.96557613]
[1723958840843,0.12549,141.61,141.58,0.8437933]
[1723958841551,6.2959,141.62,141.58,0.8437933]
[1723958842732,6.2959,141.62,141.59,9.38]
[1723958843432,15.0926,141.64,141.59,9.38]
[1723958843637,15.0926,141.64,141.61,9.38]
[1723958844338,15.0926,141.64,141.58,0.8437933]
[1723958844563,15.0926,141.64,141.59,9.38]
[1723958845038,0.12549,141.63,141.58,0.8437933]
[1723958845948,15.0926,141.64,141.58,0.8437933]
[1723958845949,0.12549,141.61,141.58,0.8437933]
[1723958846534,15.21809,141.59,141.58,0.8437933]
[1723958848232,15.21809,141.59,141.49,7.3368263]
[1723958848432,15.21809,141.59,141.51,9.38]
[1723958849260,15.21809,141.59,141.52,20.0]
[1723958849857,15.21809,141.59,141.49,7.3368263]
[1723958850036,0.12549,141.58,141.51,9.38]
[1723958851643,15.21809,141.59,141.51,9.38]
[1723958851950,15.21809,141.59,141.53,9.38]
[1723958854187,15.0926,141.59,141.53,9.38]
[1723958857368,0.12549,141.58,141.53,9.38]
[1723958860572,0.12549,141.56,141.49,7.3368263]
[1723958860765,0.12549,141.56,141.51,9.38]
[1723958860981,6.398,141.57,141.52,20.0]
[1723958861495,6.398,141.57,141.53,9.38]
[1723958866580,6.398,141.57,141.55,9.38]
[1723958868302,15.0926,141.59,141.55,9.38]
[1723958875291,6.097,141.6,141.55,9.38]
[1723958876507,16.4456,141.62,141.57,9.38]
[1723958876702,16.4456,141.62,141.59,9.38]
[1723958876917,6.097,141.63,141.59,9.38]
[1723958877121,6.097,141.63,141.57,9.38]
[1723958878111,0.12549,141.62,141.57,9.38]
[1723958878614,0.12549,141.62,141.55,9.38]
[1723958878822,0.12549,141.62,141.56,20.0]
[1723958880909,0.12549,141.62,141.55,9.38]
[1723958882396,0.12549,141.62,141.56,9.38]
[1723958885199,0.12549,141.62,141.57,2.12261095]
[1723958885399,0.12549,141.62,141.56,9.38]
[1723958885614,0.12549,141.62,141.55,6.21849856]
[1723958885615,0.12549,141.62,141.57,2.12261033]
[1723958885830,0.12549,141.62,141.55,15.59777063]
[1723958885992,0.12549,141.62,141.56,2.12263911]
[1723958886196,0.12549,141.62,141.55,6.21777063]
[1723958886197,0.12549,141.6,141.55,6.21777063]
[1723958886425,0.12549,141.6,141.56,2.1227341]
[1723958886726,0.12549,141.6,141.53,6.22059922]
[1723958886895,0.12549,141.6,141.54,2.12300348]
[1723958887100,0.12549,141.58,141.53,6.22059922]
[1723958887300,0.12549,141.58,141.54,2.12300507]
[1723958887511,0.12549,141.58,141.52,9.38]
[1723958887723,0.12549,141.58,141.53,8.34446509]
[1723958887913,0.12549,141.58,141.54,2.12308262]
[1723958888122,0.12549,141.58,141.53,6.22138247]
[1723958888302,0.12549,141.58,141.54,2.12306176]
[1723958888502,0.12549,141.58,141.53,6.22138247]
[1723958888708,0.12549,141.58,141.54,2.12298462]
[1723958888896,0.12549,141.58,141.53,6.22138247]
[1723958889098,0.12549,141.58,141.54,2.12298542]
[1723958889310,0.12549,141.58,141.55,2.12298542]
[1723958889598,0.12549,141.58,141.52,9.38]
[1723958889811,0.12549,141.58,141.53,8.34262519]
[1723958890101,0.12549,141.58,141.54,2.12296338]
[1723958890294,0.12549,141.58,141.55,2.12296415]
[1723958890497,6.097,141.59,141.54,15.59918215]
[1723958890699,6.097,141.59,141.56,9.38]
[1723958891123,6.097,141.59,141.55,9.38]
[1723958891309,6.097,141.59,141.56,2.12290294]
[1723958891510,6.097,141.59,141.55,9.38]
[1723958892332,6.097,141.59,141.56,2.12290659]
[1723958892627,6.097,141.59,141.55,9.38]
[1723958892930,6.097,141.59,141.56,2.12290659]
[1723958893232,6.097,141.59,141.55,9.38]
[1723958893427,6.097,141.59,141.56,2.12288083]
[1723958893626,6.097,141.59,141.55,9.38]
[1723958893808,6.097,141.59,141.56,2.1228775]
[1723958894004,6.097,141.59,141.55,9.38]
[1723958894206,6.097,141.59,141.56,2.12285128]
[1723958894407,6.097,141.59,141.55,9.38]
[1723958894608,6.097,141.59,141.56,2.12287345]
[1723958894910,0.12549,141.58,141.51,20.82778612]
[1723958895118,0.12549,141.58,141.52,8.34191671]
[1723958895337,0.12549,141.58,141.5,30.20778612]
[1723958895338,0.12549,141.58,141.53,2.12322863]
[1723958895534,0.12549,141.58,141.51,6.21944265]
[1723958895712,0.12549,141.58,141.52,8.34275398]
[1723958895912,0.12549,141.58,141.53,2.12331133]
[1723958896112,0.12549,141.58,141.5,19.65179992]
[1723958896414,0.12549,141.58,141.51,8.34307787]
[1723958896629,0.12549,141.58,141.52,2.12336104]
[1723958896930,0.12549,141.58,141.53,2.12336104]
[1723958897135,0.12549,141.58,141.5,19.65179992]
[1723958897337,0.12549,141.58,141.51,8.34276685]
[1723958897513,0.12549,141.58,141.52,2.12335912]
[1723958897709,5.19518,141.58,141.53,2.12335914]
[1723958898036,5.19518,141.58,141.5,10.27179992]
[1723958898037,0.12549,141.56,141.5,19.65179992]
[1723958898205,0.12549,141.56,141.51,8.34375586]
[1723958898409,0.12549,141.56,141.5,9.38]
[1723958898410,0.12549,141.56,141.52,2.12335897]
[1723958898642,0.12549,141.56,141.51,6.22011144]
[1723958898847,0.12549,141.56,141.52,2.123376]
[1723958899006,0.12549,141.56,141.51,6.21995557]
[1723958899209,15.7218,141.57,141.52,9.38]
[1723958899448,15.7218,141.57,141.53,2.12334382]
[1723958899630,15.7218,141.57,141.52,9.38]
[1723958899945,15.7218,141.57,141.53,2.12325151]
[1723958900134,15.7218,141.57,141.52,9.38]
[1723958900333,15.7218,141.57,141.53,2.12329497]
[1723958900641,0.12549,141.56,141.52,9.38]
[1723958900839,0.12549,141.56,141.53,2.12329656]
[1723958901047,0.12549,141.56,141.52,9.38]
[1723958901346,0.12549,141.56,141.53,2.12329687]
[1723958901513,0.12549,141.56,141.52,9.38]
[1723958901716,0.12549,141.56,141.53,2.12329687]
[1723958902014,0.12549,141.56,141.52,9.38]
[1723958902315,15.7218,141.57,141.54,9.38]
[1723958902735,6.097,141.59,141.54,9.38]
[1723958902736,0.12549,141.58,141.54,9.38]
[1723958902932,0.12549,141.58,141.55,1.41277281]
[1723958903615,6.097,141.59,141.56,11.50281354]
[1723958903946,6.097,141.59,141.56,9.38]
[1723958906753,6.097,141.59,141.54,6.21925143]
[1723958906916,6.097,141.59,141.55,8.34195239]
[1723958906917,0.12549,141.58,141.55,8.34195239]
[1723958907243,0.12549,141.58,141.53,6.21925143]
[1723958907450,0.12549,141.58,141.54,2.12310011]
[1723958907739,0.12549,141.58,141.53,6.21925143]
[1723958907947,0.12549,141.58,141.54,2.12311346]
[1723958908120,0.12549,141.58,141.52,9.38]
[1723958908441,0.12549,141.58,141.53,2.12311236]
[1723958908615,0.12549,141.58,141.54,2.12311236]
[1723958908818,0.12549,141.58,141.52,9.38]
[1723958909038,0.12549,141.58,141.53,2.12312481]
[1723958909342,0.12549,141.58,141.54,2.12312481]
[1723958909542,0.12549,141.58,141.52,9.38]
[1723958909849,0.12549,141.58,141.53,2.12313401]
[1723958910142,0.12549,141.58,141.54,2.12313401]
[1723958910349,0.12549,141.58,141.52,9.38]
[1723958910525,0.12549,141.58,141.53,2.12314616]
[1723958910723,0.12549,141.58,141.54,11.50314616]
[1723958910920,0.12549,141.58,141.54,9.38]
[1723958912034,0.12549,141.58,141.55,2.12299287]
[1723958912228,0.12549,141.58,141.54,9.38]
[1723958913440,0.12549,141.58,141.52,6.22161262]
[1723958913653,0.12549,141.58,141.53,2.12307977]
[1723958913823,0.12549,141.58,141.52,6.222698]
[1723958914149,0.12549,141.58,141.53,2.12323936]
[1723958914351,0.12549,141.58,141.51,9.38]
[1723958914529,0.12549,141.58,141.52,2.12325897]
[1723958914730,0.12549,141.58,141.53,2.12325897]
[1723958915034,5.06999,141.58,141.5,20.86623134]
[1723958915227,0.12549,141.56,141.51,8.34908534]
[1723958915441,0.12549,141.56,141.52,2.12331808]
[1723958915741,0.12549,141.56,141.51,6.22560402]
[1723958915941,0.12549,141.56,141.52,2.12331777]
[1723958916140,0.12549,141.56,141.51,6.22618075]
[1723958916338,0.12549,141.56,141.52,2.12331857]
[1723958916527,0.12549,141.56,141.51,6.22595672]
[1723958916728,0.12549,141.56,141.52,2.12331777]
[1723958916944,0.12549,141.56,141.51,6.22618316]
[1723958917145,21.6315,141.55,141.52,2.12331857]
[1723958917453,0.12549,141.54,141.47,10.57544846]
[1723958917777,0.12549,141.54,141.48,9.38]
[1723958917964,0.12549,141.54,141.48,17.73311362]
[1723958918254,0.12549,141.54,141.49,2.12365408]
[1723958918439,0.12549,141.54,141.48,9.38]
[1723958921727,45.37647,141.54,141.48,9.38]
[1723958922353,45.37647,141.54,141.44,17.90880926]
[1723958922354,45.37647,141.54,141.46,9.38]
[1723958924752,59.70207,141.54,141.44,6.23099378]
[1723958924954,59.70207,141.54,141.45,29.38]
[1723958926869,15.6097,141.52,141.45,29.38]
[1723958927157,0.12549,141.51,141.45,29.38]
[1723958931263,0.12549,141.51,141.45,20.0]
[1723958931479,0.12549,141.51,141.45,9.38]
[1723958931848,15.6097,141.52,141.45,2.12422166]
[1723958932078,15.6097,141.52,141.48,9.38]
[1723958932876,15.6097,141.52,141.45,2.12407104]
[1723958933091,0.12549,141.51,141.44,2.12407104]
[1723958934070,0.12549,141.51,141.45,9.38]
[1723958942866,0.12549,141.51,141.46,9.38]
[1723958943967,6.4101,141.5,141.43,22.96794595]
[1723958944164,0.12549,141.49,141.43,0.8437933]
[1723958944371,6.53559,141.47,141.43,0.8437933]
[1723958947282,6.53559,141.47,141.43,10.2237933]
[1723958947690,6.53559,141.47,141.43,0.8437933]
[1723958947856,0.12549,141.45,141.43,0.8437933]
[1723958948457,16.37189,141.44,141.43,0.8437933]
[1723958948762,16.62287,141.44,141.43,0.8437933]
[1723958950196,16.2464,141.44,141.43,0.8437933]
[1723958951463,16.49738,141.44,141.43,0.8437933]
[1723958951809,61.62287,141.44,141.43,0.8437933]
[1723958955405,16.49738,141.44,141.43,0.8437933]
[1723958956878,16.37189,141.44,141.43,0.8437933]
[1723958959284,22.6494,141.51,141.43,0.8437933]
[1723958959674,22.6494,141.51,141.46,9.38]
[1723958959993,22.6494,141.51,141.44,9.38]
[1723958960194,27.596,141.51,141.44,9.38]
[1723958960812,22.6494,141.51,141.44,9.38]
[1723958961318,22.6494,141.51,141.46,9.38]
[1723958961481,27.5961,141.51,141.43,10.2237933]
[1723958962495,0.12549,141.5,141.43,10.2237933]
[1723958962695,45.50196,141.5,141.43,10.2237933]
[1723958963513,22.6494,141.51,141.46,9.38]
[1723958964619,22.6494,141.51,141.44,9.38]
[1723958964814,45.25098,141.5,141.44,9.38]
[1723958965812,0.12549,141.5,141.46,9.38]
[1723958967099,0.12549,141.5,141.43,0.8437933]
[1723958967100,0.37647,141.5,141.44,9.38]
[1723958967303,45.37647,141.5,141.44,9.38]
[1723958967914,0.12549,141.5,141.46,9.38]
[1723958976030,6.1412,141.54,141.48,9.38]
[1723958976207,0.12549,141.53,141.48,9.38]
[1723958977414,45.37647,141.53,141.44,2.12415608]
[1723958977604,45.37647,141.53,141.46,9.38]
[1723958979202,45.37647,141.53,141.44,2.12415608]
[1723958979397,45.37647,141.53,141.44,22.12415608]
[1723958979715,45.37647,141.53,141.46,9.38]
[1723958981616,50.32247,141.53,141.46,9.38]
[1723958981802,50.32247,141.53,141.44,9.38]
[1723958981803,0.12549,141.52,141.44,9.38]
[1723958982017,0.12549,141.51,141.44,9.38]
[1723958982210,0.37647,141.51,141.44,9.38]
[1723958982702,0.12549,141.5,141.44,9.38]
[1723958982906,0.12549,141.49,141.44,9.38]
[1723958986807,4.9459,141.53,141.46,9.38]
[1723958988015,0.25098,141.52,141.46,9.38]
[1723958988224,45.25098,141.52,141.46,9.38]
[1723958993724,0.25098,141.51,141.44,9.38]
[1723958993915,0.12549,141.5,141.44,9.38]
[1723958994109,0.25098,141.5,141.44,9.38]
[1723959000214,0.12549,141.5,141.44,9.38]
[1723959002114,0.12549,141.5,141.43,0.8437933]
[1723959002115,4.9473,141.49,141.43,0.8437933]
[1723959002310,0.25098,141.48,141.43,0.8437933]
[1723959003838,0.12549,141.49,141.44,2.1246422]
[1723959004045,6.1423,141.52,141.45,10.79376889]
[1723959004246,6.1423,141.52,141.45,9.38]
[1723959004824,11.0886,141.52,141.45,9.38]
[1723959005248,0.25098,141.51,141.46,2.12442992]
[1723959005425,0.25098,141.51,141.45,9.38]
[1723959005743,0.25098,141.51,141.46,2.12444049]
[1723959005943,0.25098,141.51,141.45,9.38]
[1723959006152,0.25098,141.51,141.46,2.12444097]
[1723959006331,0.25098,141.51,141.45,9.38]
[1723959006529,0.25098,141.51,141.46,2.12443009]
[1723959006724,0.25098,141.51,141.45,9.38]
[1723959007043,0.25098,141.51,141.46,2.1244293]
[1723959007242,0.25098,141.51,141.45,9.38]
[1723959007436,0.25098,141.51,141.46,2.12443009]
[1723959007622,0.25098,141.51,141.45,9.38]
[1723959007830,0.25098,141.51,141.46,2.12445097]
[1723959008157,0.25098,141.51,141.45,9.38]
[1723959008327,0.25098,141.51,141.46,2.124379]
[1723959008532,0.25098,141.51,141.45,9.38]
[1723959008860,0.25098,141.51,141.46,2.12437838]
[1723959009040,0.25098,141.51,141.45,9.38]